[Event "FIDE Grand Swiss 2023"]
[Site "Villa Marina, Douglas, Isle of Man"]
[Date "2023.10.28"]
[Round "4.51"]
[White "Henriquez Villagra, Cristobal"]
[Black "Fier, Alexandr"]
[Result "1/2-1/2"]
[WhiteElo "2630"]
[BlackElo "2574"]
[EventDate "2023.10.25"]
[ECO "B30"]
[PlyCount "67"]
[BlackFideId "2107139"]
[TimeControl "40/100 + 20/50 + 15 + 30s/move"]
[WhiteFideId "3409350"]

1.e4 {[%clk 01:40:57] [%emt 00:00:03]} 1...c5 {[%clk 01:40:55] [%emt 00:00:05]} 
2.Nf3 {[%clk 01:41:21] [%emt 00:00:05]} 2...Nc6 {[%clk 01:41:22] [%emt
00:00:03]} 3.Bb5 {[%clk 01:41:45] [%emt 00:00:06]} 3...e6 {[%clk 01:41:48] [%emt
00:00:04]} 4.O-O {[%clk 01:33:11] [%emt 00:09:03]} 4...Nge7 {[%clk 01:42:14]
[%emt 00:00:05]} 5.d4 {[%clk 01:33:21] [%emt 00:00:20]} 5...cxd4 {[%clk
01:42:39] [%emt 00:00:05]} 6.Nxd4 {[%clk 01:33:42] [%emt 00:00:07]} 6...Ng6 
{[%clk 01:43:05] [%emt 00:00:05]} 7.c3 {[%clk 01:28:19] [%emt 00:05:54]} 
7...Be7 {[%clk 01:43:28] [%emt 00:00:06]} 8.Be3 {[%clk 01:28:00] [%emt
00:00:49]} 8...O-O {[%clk 01:43:52] [%emt 00:00:07]} 9.Nd2 {[%clk 01:27:57]
[%emt 00:00:34]} 9...Nxd4 {[%clk 01:25:45] [%emt 00:18:37]} 10.cxd4 {[%clk
01:25:38] [%emt 00:02:49]} 10...d5 {[%clk 01:25:13] [%emt 00:01:02]} 11.e5 
{[%clk 01:18:10] [%emt 00:07:58]} 11...f6 {[%clk 01:20:21] [%emt 00:05:22]} 
12.f4 {[%clk 01:01:08] [%emt 00:17:32]} 12...Qb6 {[%clk 01:20:23] [%emt
00:00:29]} 13.Qe2 {[%clk 00:56:53] [%emt 00:04:44]} 13...fxe5 {[%clk 01:18:40]
[%emt 00:02:13]} 14.fxe5 {[%clk 00:54:45] [%emt 00:02:37]} 14...a6 {[%clk
01:18:59] [%emt 00:00:12]} 15.Rxf8+ {[%clk 00:44:12] [%emt 00:11:03]} 15...Nxf8 
{[%clk 01:14:26] [%emt 00:05:03]} 16.Bd3 {[%clk 00:44:36] [%emt 00:00:06]} 
16...Bd7 {[%clk 01:12:18] [%emt 00:02:38]} 17.Rf1 {[%clk 00:33:27] [%emt
00:11:39]} 17...Bb5 {[%clk 01:10:30] [%emt 00:02:18]} 18.Nf3 {[%clk 00:33:18]
[%emt 00:00:39]} 18...Bxd3 {[%clk 01:09:15] [%emt 00:01:46]} 19.Qxd3 {[%clk
00:33:42] [%emt 00:00:05]} 19...Ng6 {[%clk 01:04:51] [%emt 00:04:55]} 20.Rf2 
{[%clk 00:33:29] [%emt 00:00:43]} 20...Rc8 {[%clk 01:04:06] [%emt 00:01:15]} 
21.g3 {[%clk 00:33:10] [%emt 00:00:48]} 21...Qb5 {[%clk 00:56:33] [%emt
00:08:04]} 22.Qd1 {[%clk 00:25:34] [%emt 00:08:06]} 22...h6 {[%clk 00:53:10]
[%emt 00:03:53]} 23.h4 {[%clk 00:25:09] [%emt 00:00:55]} 23...a5 {[%clk
00:53:20] [%emt 00:00:20]} 24.h5 {[%clk 00:20:50] [%emt 00:04:48]} 24...Nh8 
{[%clk 00:52:07] [%emt 00:01:43]} 25.Ne1 {[%clk 00:17:45] [%emt 00:03:35]} 
25...Nf7 {[%clk 00:48:02] [%emt 00:04:35]} 26.Qg4 {[%clk 00:16:54] [%emt
00:01:21]} 26...Qd7 {[%clk 00:48:24] [%emt 00:00:09]} 27.Nd3 {[%clk 00:15:37]
[%emt 00:01:47]} 27...Ng5 {[%clk 00:41:11] [%emt 00:07:43]} 28.Kg2 {[%clk
00:14:13] [%emt 00:01:53]} 28...b6 {[%clk 00:41:07] [%emt 00:00:35]} 29.Nf4 
{[%clk 00:12:25] [%emt 00:02:18]} 29...Rf8 {[%clk 00:31:44] [%emt 00:09:53]} 
30.b3 {[%clk 00:11:39] [%emt 00:01:15]} 30...Rf5 {[%clk 00:28:42] [%emt
00:03:32]} 31.Nh3 {[%clk 00:09:21] [%emt 00:02:48]} 31...Nxh3 {[%clk 00:27:39]
[%emt 00:01:34]} 32.Qxh3 {[%clk 00:06:58] [%emt 00:02:53]} 32...Rxf2+ {[%clk
00:28:03] [%emt 00:00:06]} 33.Kxf2 {[%clk 00:07:11] [%emt 00:00:18]} 33...Qc6 
{[%clk 00:27:38] [%emt 00:00:56]} 34.Kf3 {[%clk 00:06:07] [%emt 00:01:33]} 1/2-1/2

[Event "FIDE Grand Swiss 2023"]
[Site "Villa Marina, Douglas, Isle of Man"]
[Date "2023.10.28"]
[Round "4.52"]
[White "Fawzy, Adham"]
[Black "Iturrizaga Bonelli, Eduardo"]
[Result "1-0"]
[WhiteElo "2535"]
[BlackElo "2615"]
[EventDate "2023.10.25"]
[ECO "C56"]
[PlyCount "79"]
[BlackFideId "3901211"]
[TimeControl "40/100 + 20/50 + 15 + 30s/move"]
[WhiteFideId "10613129"]

1.e4 {[%clk 01:40:52] [%emt 00:00:07]} 1...e5 {[%clk 01:40:55] [%emt 00:00:06]} 
2.Nf3 {[%clk 01:39:30] [%emt 00:01:52]} 2...Nc6 {[%clk 01:40:53] [%emt
00:00:32]} 3.d4 {[%emt 00:06:54]} 3...exd4 {[%clk 01:41:03]} 4.Bc4 {[%clk
01:33:40] [%emt 00:00:14]} 4...Nf6 {[%clk 01:38:00] [%emt 00:03:33]} 5.O-O 
{[%clk 01:27:27] [%emt 00:06:43]} 5...Nxe4 {[%clk 01:09:58] [%emt 00:28:33]} 
6.Re1 {[%clk 01:27:33] [%emt 00:00:23]} 6...d5 {[%clk 01:10:22] [%emt 00:00:07]} 
7.Bxd5 {[%clk 01:27:47] [%emt 00:00:16]} 7...Qxd5 {[%clk 01:08:20] [%emt
00:02:32]} 8.Nc3 {[%clk 01:28:10] [%emt 00:00:06]} 8...Qa5 {[%clk 01:01:41]
[%emt 00:07:08]} 9.Nxe4 {[%clk 01:27:33] [%emt 00:01:07]} 9...Be6 {[%clk
00:58:21] [%emt 00:03:51]} 10.Neg5 {[%clk 01:27:41] [%emt 00:00:22]} 10...O-O-O 
{[%clk 00:58:36] [%emt 00:00:15]} 11.Nxe6 {[%clk 01:27:54] [%emt 00:00:17]} 
11...fxe6 {[%clk 00:59:02] [%emt 00:00:04]} 12.Rxe6 {[%clk 01:28:11] [%emt
00:00:13]} 12...Be7 {[%clk 00:36:12] [%emt 00:23:20]} 13.Qd3 {[%clk 01:07:41]
[%emt 00:21:01]} 13...Bf6 {[%clk 00:34:15] [%emt 00:02:27]} 14.Bd2 {[%clk
01:06:58] [%emt 00:01:13]} 14...Qd5 {[%clk 00:34:02] [%emt 00:00:43]} 15.Rae1 
{[%clk 01:04:40] [%emt 00:02:47]} 15...Qxa2 {[%clk 00:14:06] [%emt 00:20:27]} 
16.b3 {[%clk 01:01:25] [%emt 00:03:45]} 16...h6 {[%clk 00:05:03] [%emt
00:09:33]} 17.Qc4 {[%clk 00:55:27] [%emt 00:06:28]} 17...Kb8 {[%clk 00:03:31]
[%emt 00:02:02]} 18.Bf4 {[%clk 00:44:16] [%emt 00:11:41]} 18...Qa5 {[%clk
00:03:39] [%emt 00:00:22]} 19.Rxc6 {[%clk 00:37:58] [%emt 00:06:48]} 19...bxc6 
{[%clk 00:04:05] [%emt 00:00:04]} 20.Qxc6 {[%clk 00:38:22] [%emt 00:00:07]} 
20...Qb6 {[%clk 00:04:03] [%emt 00:00:32]} 21.Qc4 {[%clk 00:38:35] [%emt
00:00:14]} 21...Rd7 {[%clk 00:01:10] [%emt 00:03:25]} 22.Re6 {[%clk 00:35:58]
[%emt 00:03:07]} 22...Qb7 {[%clk 00:01:35] [%emt 00:00:05]} 23.Rc6 {[%clk
00:32:59] [%emt 00:03:29]} 23...Re8 {[%clk 00:01:08] [%emt 00:00:57]} 24.Bxc7+ 
{[%clk 00:32:03] [%emt 00:01:27]} 24...Ka8 {[%clk 00:01:36] [%emt 00:00:02]} 
25.Bg3 {[%clk 00:31:22] [%emt 00:01:09]} 25...d3 {[%clk 00:01:49] [%emt
00:00:18]} 26.h4 {[%clk 00:20:07] [%emt 00:11:46]} 26...d2 {[%clk 00:01:02]
[%emt 00:01:17]} 27.Nxd2 {[%clk 00:20:24] [%emt 00:00:14]} 27...Rd4 {[%clk
00:00:35] [%emt 00:00:57]} 28.Qc5 {[%clk 00:18:40] [%emt 00:02:13]} 28...Rxd2 
{[%clk 00:01:02] [%emt 00:00:03]} 29.Rc7 {[%clk 00:18:50] [%emt 00:00:20]} 
29...Bd4 {[%clk 00:00:40] [%emt 00:00:53]} 30.Qc4 {[%clk 00:15:55] [%emt
00:03:24]} 30...Qe4 {[%clk 00:00:32] [%emt 00:00:38]} 31.Rc8+ {[%clk 00:14:14]
[%emt 00:02:10]} 31...Kb7 {[%clk 00:01:00] [%emt 00:00:01]} 32.Qf7+ {[%clk
00:13:29] [%emt 00:01:14]} 32...Re7 {[%clk 00:00:38] [%emt 00:00:54]} 33.Rb8+ 
{[%clk 00:11:45] [%emt 00:02:14]} 33...Kc6 {[%clk 00:01:04] [%emt 00:00:04]} 
34.Qc4+ {[%clk 00:11:10] [%emt 00:01:05]} 34...Bc5 {[%clk 00:01:31] [%emt
00:00:03]} 35.Rc8+ {[%clk 00:10:06] [%emt 00:01:35]} 35...Kd7 {[%clk 00:01:56]
[%emt 00:00:04]} 36.Qxc5 {[%clk 00:09:52] [%emt 00:00:44]} 36...Ke6 {[%clk
00:02:16] [%emt 00:00:09]} 37.Rf8 {[%clk 00:07:45] [%emt 00:02:38]} 37...g5 
{[%clk 00:01:15] [%emt 00:01:32]} 38.Qc8+ {[%clk 00:07:57] [%emt 00:00:17]} 
38...Rdd7 {[%clk 00:01:14] [%emt 00:00:31]} 39.Qa6+ {[%clk 00:08:25] [%emt
00:00:02]} 39...Kd5 {[%clk 00:01:35] [%emt 00:00:08]} 40.Rf5+ {[%clk 00:08:40]
[%emt 00:00:15]} 1-0

[Event "FIDE Grand Swiss 2023"]
[Site "Villa Marina, Douglas, Isle of Man"]
[Date "2023.10.28"]
[Round "4.53"]
[White "Gupta, Abhijeet"]
[Black "Adhiban, B."]
[Result "1-0"]
[WhiteElo "2609"]
[BlackElo "2551"]
[EventDate "2023.10.25"]
[ECO "D43"]
[PlyCount "119"]
[BlackFideId "5018471"]
[TimeControl "40/100 + 20/50 + 15 + 30s/move"]
[WhiteFideId "5010608"]

1.d4 {[%clk 01:40:40] [%emt 00:00:19]} 1...Nf6 {[%clk 01:40:07] [%emt 00:00:53]} 
2.c4 {[%clk 01:41:04] [%emt 00:00:06]} 2...e6 {[%clk 01:40:32] [%emt 00:00:06]} 
3.Nf3 {[%clk 01:41:26] [%emt 00:00:07]} 3...d5 {[%clk 01:40:54] [%emt 00:00:07]} 
4.Nc3 {[%clk 01:41:37] [%emt 00:00:19]} 4...c6 {[%clk 01:41:12] [%emt 00:00:12]} 
5.Bg5 {[%clk 01:41:16] [%emt 00:00:51]} 5...h6 {[%clk 01:41:14] [%emt 00:00:28]} 
6.Bh4 {[%clk 01:41:17] [%emt 00:00:28]} 6...Be7 {[%clk 01:41:31] [%emt
00:00:13]} 7.e3 {[%clk 01:41:16] [%emt 00:00:32]} 7...Nbd7 {[%clk 01:41:56]
[%emt 00:00:05]} 8.Bd3 {[%clk 01:38:03] [%emt 00:03:43]} 8...dxc4 {[%clk
01:42:21] [%emt 00:00:06]} 9.Bxc4 {[%clk 01:38:28] [%emt 00:00:04]} 9...b5 
{[%clk 01:42:48] [%emt 00:00:04]} 10.Bd3 {[%clk 01:38:39] [%emt 00:00:19]} 
10...Bb7 {[%clk 01:42:31] [%emt 00:00:47]} 11.O-O {[%clk 01:38:46] [%emt
00:00:23]} 11...O-O {[%clk 01:42:41] [%emt 00:00:20]} 12.a3 {[%clk 01:38:29]
[%emt 00:00:47]} 12...a5 {[%clk 01:39:56] [%emt 00:03:15]} 13.Rc1 {[%clk
01:38:33] [%emt 00:00:25]} 13...Rc8 {[%clk 01:39:31] [%emt 00:00:55]} 14.Ne5 
{[%clk 01:28:41] [%emt 00:10:22]} 14...Nxe5 {[%clk 01:23:09] [%emt 00:16:53]} 
15.dxe5 {[%clk 01:27:01] [%emt 00:02:09]} 15...Nd7 {[%clk 01:23:36] [%emt
00:00:03]} 16.Bxe7 {[%clk 01:27:25] [%emt 00:00:06]} 16...Qxe7 {[%clk 01:24:03]
[%emt 00:00:03]} 17.f4 {[%clk 01:27:50] [%emt 00:00:05]} 17...f5 {[%clk
01:24:29] [%emt 00:00:05]} 18.exf6 {[%clk 01:05:59] [%emt 00:22:21]} 18...Nxf6 
{[%clk 01:24:55] [%emt 00:00:03]} 19.Ne4 {[%clk 01:05:37] [%emt 00:00:51]} 
19...Nxe4 {[%clk 01:23:32] [%emt 00:01:53]} 20.Bxe4 {[%emt 00:00:07]} 20...c5 
{[%clk 01:23:48] [%emt 00:00:10]} 21.Bb1 {[%clk 01:05:14] [%emt 00:01:20]} 
21...Rfd8 {[%clk 01:23:14] [%emt 00:01:04]} 22.Qc2 {[%clk 01:00:51] [%emt
00:04:54]} 22...Qf6 {[%clk 01:23:36] [%emt 00:00:08]} 23.h3 {[%clk 00:45:52]
[%emt 00:15:28]} 23...c4 {[%clk 01:21:01] [%emt 00:03:05]} 24.Rcd1 {[%clk
00:45:56] [%emt 00:00:26]} 24...Kf8 {[%clk 01:12:35] [%emt 00:08:55]} 25.a4 
{[%clk 00:38:31] [%emt 00:07:56]} 25...b4 {[%clk 01:04:49] [%emt 00:08:17]} 
26.Rxd8+ {[%clk 00:24:36] [%emt 00:14:25]} 26...Rxd8 {[%clk 01:04:51] [%emt
00:00:27]} 27.f5 {[%clk 00:24:30] [%emt 00:00:36]} 27...e5 {[%clk 01:04:39]
[%emt 00:00:43]} 28.Qxc4 {[%clk 00:24:04] [%emt 00:00:56]} 28...Ba6 {[%clk
01:00:20] [%emt 00:04:48]} 29.Qc5+ {[%clk 00:21:57] [%emt 00:02:38]} 29...Qd6 
{[%clk 00:49:31] [%emt 00:11:20]} 30.Qxd6+ {[%clk 00:22:23] [%emt 00:00:04]} 
30...Rxd6 {[%clk 00:49:57] [%emt 00:00:03]} 31.Rc1 {[%clk 00:22:48] [%emt
00:00:05]} 31...Bb7 {[%clk 00:49:20] [%emt 00:01:07]} 32.Kh2 {[%clk 00:16:53]
[%emt 00:06:25]} 32...b3 {[%clk 00:40:45] [%emt 00:09:05]} 33.Rc3 {[%clk
00:14:45] [%emt 00:02:38]} 33...Rd2 {[%clk 00:36:45] [%emt 00:04:29]} 34.e4 
{[%clk 00:15:11] [%emt 00:00:04]} 34...Rd4 {[%clk 00:32:16] [%emt 00:04:59]} 
35.Rxb3 {[%clk 00:13:01] [%emt 00:02:40]} 35...Bxe4 {[%clk 00:32:40] [%emt
00:00:05]} 36.Rb8+ {[%clk 00:13:06] [%emt 00:00:26]} 36...Ke7 {[%clk 00:32:44]
[%emt 00:00:25]} 37.Bxe4 {[%clk 00:13:16] [%emt 00:00:20]} 37...Rxe4 {[%clk
00:33:09] [%emt 00:00:06]} 38.b3 {[%clk 00:13:43] [%emt 00:00:03]} 38...Re3 
{[%clk 00:28:36] [%emt 00:05:02]} 39.Rb6 {[%clk 00:13:20] [%emt 00:00:53]} 
39...Kf7 {[%clk 00:28:46] [%emt 00:00:20]} 40.g4 {[%clk 00:12:30] [%emt
00:01:20]} 40...e4 {[%clk 00:26:56] [%emt 00:02:20]} 41.Kg2 {[%clk 00:11:32]
[%emt 00:01:27]} 41...Rc3 {[%clk 00:29:58] [%emt 00:47:28]} 42.b4 {[%clk
00:44:17] [%emt 00:17:45]} 42...axb4 {[%clk 00:29:39] [%emt 00:00:49]} 43.Rxb4 
{[%clk 00:44:44] [%emt 00:00:03]} 43...Rc2+ {[%clk 00:30:01] [%emt 00:00:09]} 
44.Kg3 {[%clk 00:44:19] [%emt 00:00:55]} 44...e3 {[%clk 00:30:23] [%emt
00:00:08]} 45.h4 {[%clk 00:42:33] [%emt 00:02:16]} 45...e2 {[%clk 00:21:19]
[%emt 00:09:35]} 46.Kf2 {[%clk 00:41:58] [%emt 00:01:05]} 46...Kf6 {[%clk
00:21:31] [%emt 00:00:19]} 47.Rb6+ {[%clk 00:39:35] [%emt 00:02:53]} 47...Ke5 
{[%clk 00:18:53] [%emt 00:03:08]} 48.Rg6 {[%clk 00:38:24] [%emt 00:01:40]} 
48...Ra2 {[%clk 00:18:41] [%emt 00:00:42]} 49.h5 {[%clk 00:32:14] [%emt
00:06:40]} 49...Rxa4 {[%clk 00:14:13] [%emt 00:04:58]} 50.Rxg7 {[%clk 00:31:58]
[%emt 00:00:46]} 50...Ra2 {[%clk 00:09:55] [%emt 00:04:49]} 51.Rg8 {[%clk
00:30:58] [%emt 00:01:30]} 51...Rb2 {[%clk 00:08:26] [%emt 00:01:59]} 52.Re8+ 
{[%clk 00:25:03] [%emt 00:06:25]} 52...Kf4 {[%clk 00:08:11] [%emt 00:00:44]} 
53.Rg8 {[%clk 00:24:42] [%emt 00:00:51]} 53...Ke5 {[%clk 00:08:01] [%emt
00:00:40]} 54.Rg6 {[%clk 00:24:14] [%emt 00:00:57]} 54...Kf4 {[%clk 00:08:02]
[%emt 00:00:30]} 55.f6 {[%clk 00:24:26] [%emt 00:00:18]} 55...Rb7 {[%clk
00:05:49] [%emt 00:02:43]} 56.Kxe2 {[%clk 00:23:52] [%emt 00:01:04]} 56...Rd7 
{[%clk 00:05:56] [%emt 00:00:22]} 57.Rg7 {[%clk 00:23:34] [%emt 00:00:48]} 
57...Rd8 {[%clk 00:06:03] [%emt 00:00:23]} 58.f7 {[%clk 00:22:59] [%emt
00:01:05]} 58...Rf8 {[%clk 00:06:29] [%emt 00:00:04]} 59.Kf2 {[%clk 00:22:17]
[%emt 00:01:13]} 59...Ke5 {[%clk 00:06:24] [%emt 00:00:35]} 60.Kg3 {[%clk
00:22:42] [%emt 00:00:04]} 1-0

[Event "FIDE Grand Swiss 2023"]
[Site "Villa Marina, Douglas, Isle of Man"]
[Date "2023.10.28"]
[Round "4.54"]
[White "Bachmann, Axel"]
[Black "Krasenkow, Michal"]
[Result "1/2-1/2"]
[WhiteElo "2604"]
[BlackElo "2531"]
[EventDate "2023.10.25"]
[ECO "A21"]
[PlyCount "64"]
[BlackFideId "1113100"]
[TimeControl "40/100 + 20/50 + 15 + 30s/move"]
[WhiteFideId "3700488"]

1.c4 {[%clk 01:40:57] [%emt 00:00:03]} 1...e5 {[%clk 01:40:53] [%emt 00:00:06]} 
2.Nc3 {[%clk 01:41:07] [%emt 00:00:20]} 2...d6 {[%clk 01:41:16] [%emt 00:00:08]} 
3.g3 {[%clk 01:41:15] [%emt 00:00:21]} 3...g6 {[%clk 01:41:14] [%emt 00:00:33]} 
4.d4 {[%clk 01:38:44] [%emt 00:03:01]} 4...exd4 {[%clk 01:38:26] [%emt
00:03:18]} 5.Qxd4 {[%clk 01:39:03] [%emt 00:00:10]} 5...Nf6 {[%clk 01:38:47]
[%emt 00:00:08]} 6.b3 {[%clk 01:28:56] [%emt 00:10:38]} 6...Bg7 {[%clk 01:38:01]
[%emt 00:01:16]} 7.Bb2 {[%clk 01:29:21] [%emt 00:00:06]} 7...O-O {[%clk
01:37:54] [%emt 00:00:36]} 8.Bg2 {[%clk 01:29:22] [%emt 00:00:29]} 8...Nbd7 
{[%clk 01:37:10] [%emt 00:01:15]} 9.Nh3 {[%clk 01:23:44] [%emt 00:06:07]} 
9...Re8 {[%clk 01:33:02] [%emt 00:04:38]} 10.Qd2 {[%clk 01:21:57] [%emt
00:02:17]} 10...Nc5 {[%clk 01:32:23] [%emt 00:01:09]} 11.Nf4 {[%clk 01:18:25]
[%emt 00:04:01]} 11...a5 {[%clk 01:21:04] [%emt 00:11:50]} 12.O-O {[%clk
01:17:23] [%emt 00:01:32]} 12...a4 {[%clk 01:09:22] [%emt 00:12:12]} 13.Nxa4 
{[%clk 01:02:53] [%emt 00:14:59]} 13...Nxa4 {[%clk 01:09:07] [%emt 00:00:44]} 
14.bxa4 {[%clk 01:03:19] [%emt 00:00:04]} 14...Rxa4 {[%clk 01:05:51] [%emt
00:03:46]} 15.Qc2 {[%clk 01:03:28] [%emt 00:00:21]} 15...Ra6 {[%clk 01:00:14]
[%emt 00:06:07]} 16.Bd4 {[%clk 00:58:29] [%emt 00:05:29]} 16...Nh5 {[%clk
00:45:54] [%emt 00:14:51]} 17.Bxg7 {[%clk 00:56:14] [%emt 00:02:44]} 17...Nxg7 
{[%clk 00:44:23] [%emt 00:02:01]} 18.Rfd1 {[%clk 00:48:17] [%emt 00:08:27]} 
18...c6 {[%clk 00:42:11] [%emt 00:02:42]} 19.c5 {[%clk 00:32:30] [%emt
00:16:18]} 19...d5 {[%clk 00:42:23] [%emt 00:00:18]} 20.e4 {[%clk 00:32:50]
[%emt 00:00:10]} 20...Bg4 {[%clk 00:42:13] [%emt 00:00:39]} 21.f3 {[%clk
00:29:34] [%emt 00:03:46]} 21...Be6 {[%clk 00:41:54] [%emt 00:00:49]} 22.exd5 
{[%clk 00:25:12] [%emt 00:04:52]} 22...cxd5 {[%clk 00:40:51] [%emt 00:01:33]} 
23.Nxd5 {[%clk 00:25:15] [%emt 00:00:27]} 23...Bxd5 {[%clk 00:40:12] [%emt
00:01:09]} 24.f4 {[%clk 00:25:04] [%emt 00:00:40]} 24...Nf5 {[%clk 00:31:17]
[%emt 00:09:25]} 25.Bxd5 {[%clk 00:24:28] [%emt 00:01:07]} 25...Qc8 {[%clk
00:29:54] [%emt 00:01:52]} 26.Re1 {[%clk 00:18:36] [%emt 00:06:21]} 26...Ne3 
{[%clk 00:28:28] [%emt 00:01:56]} 27.Qb3 {[%clk 00:14:40] [%emt 00:04:27]} 
27...Nxd5 {[%clk 00:27:36] [%emt 00:01:23]} 28.Qxd5 {[%clk 00:15:04] [%emt
00:00:05]} 28...Rc6 {[%clk 00:19:53] [%emt 00:08:12]} 29.Rxe8+ {[%clk 00:11:43]
[%emt 00:03:52]} 29...Qxe8 {[%clk 00:20:20] [%emt 00:00:03]} 30.Kf2 {[%clk
00:11:18] [%emt 00:00:55]} 30...Qc8 {[%clk 00:19:16] [%emt 00:01:35]} 31.Rd1 
{[%clk 00:11:41] [%emt 00:00:07]} 31...Rxc5 {[%clk 00:18:50] [%emt 00:00:56]} 
32.Qd8+ {[%clk 00:12:04] [%emt 00:00:07]} 32...Qxd8 {[%clk 00:17:41] [%emt
00:00:29]} 1/2-1/2